[Event "November 21 Early 2023"]
[Site "https://www.chess.com"]
[Date "2023.11.21"]
[Round "8"]
[White "Shimanov, Aleksandr"]
[Black "Nihal Sarin"]
[Result "1/2-1/2"]
[Board "5"]
[TimeControl "180+1"]
[WhiteFideId "4198603"]
[BlackFideId "25092340"]
[WhiteElo "2611"]
[BlackElo "2689"]
[WhiteTeam "RUS"]
[BlackTeam "IND"]
[WhiteClock "0:00:49"]
[BlackClock "0:00:16"]

1. e4 {[%clk 0:03:00]}  e5 {[%clk 0:03:00]} 2. Nf3 {[%clk 0:02:59]}  Nc6 {[%clk 0:03:00]} 3. Nc3 {[%clk 0:02:59]}  Nf6 {[%clk 0:02:59]} 4. h3 {[%clk 0:02:59]}  g6 {[%clk 0:02:57]} 5. d4 {[%clk 0:02:57]}  exd4 {[%clk 0:02:56]} 6. Nxd4 {[%clk 0:02:58]}  Bg7 {[%clk 0:02:56]} 7. Nxc6 {[%clk 0:02:58]}  dxc6 {[%clk 0:02:54]} 8. Qxd8+ {[%clk 0:02:56]}  Kxd8 {[%clk 0:02:55]} 9. Bf4 {[%clk 0:02:56]}  Be6 {[%clk 0:02:53]} 10. O-O-O+ {[%clk 0:02:55]}  Nd7 {[%clk 0:02:54]} 11. a3 {[%clk 0:02:46]}  h5 {[%clk 0:02:22]} 12. Be2 {[%clk 0:02:38]}  h4 {[%clk 0:02:18]} 13. Bg5+ {[%clk 0:02:33]}  Ke8 {[%clk 0:02:17]} 14. Rd2 {[%clk 0:02:29]}  Bh6 {[%clk 0:01:58]} 15. Bxh6 {[%clk 0:02:28]}  Rxh6 {[%clk 0:01:59]} 16. Rhd1 {[%clk 0:02:28]}  g5 {[%clk 0:01:58]} 17. b3 {[%clk 0:02:07]}  Ne5 {[%clk 0:01:57]} 18. f3 {[%clk 0:02:05]}  Ke7 {[%clk 0:01:57]} 19. Kb2 {[%clk 0:02:03]}  a5 {[%clk 0:01:57]} 20. a4 {[%clk 0:02:01]}  b6 {[%clk 0:01:57]} 21. Nb1 {[%clk 0:01:53]}  c5 {[%clk 0:01:49]} 22. Na3 {[%clk 0:01:53]}  c6 {[%clk 0:01:47]} 23. Nc4 {[%clk 0:01:50]}  Bxc4 {[%clk 0:01:46]} 24. Bxc4 {[%clk 0:01:49]}  Rhh8 {[%clk 0:01:35]} 25. Bf1 {[%clk 0:01:44]}  Rhd8 {[%clk 0:01:31]} 26. Kc1 {[%clk 0:01:37]}  Rxd2 {[%clk 0:01:22]} 27. Rxd2 {[%clk 0:01:37]}  Ng6 {[%clk 0:01:14]} 28. Kd1 {[%clk 0:01:35]}  Nf4 {[%clk 0:01:04]} 29. Ke1 {[%clk 0:01:34]}  f6 {[%clk 0:00:57]} 30. Kf2 {[%clk 0:01:33]}  Rd8 {[%clk 0:00:56]} 31. Rxd8 {[%clk 0:01:31]}  Kxd8 {[%clk 0:00:57]} 32. g3 {[%clk 0:01:14]}  hxg3+ {[%clk 0:00:49]} 33. Kxg3 {[%clk 0:01:15]}  Ng6 {[%clk 0:00:49]} 34. Kg4 {[%clk 0:01:04]}  Ke7 {[%clk 0:00:49]} 35. Kf5 {[%clk 0:00:49]}  Nh4+ {[%clk 0:00:49]} 36. Kg4 {[%clk 0:00:49]}  Ng6 {[%clk 0:00:50]} 37. Kf5 {[%clk 0:00:49]}  Nh4+ {[%clk 0:00:16]} 38. Kg4 {[%clk 0:00:49]}  Ng6 {[%clk 0:00:16]} 1/2-1/2

[Event "November 21 Early 2023"]
[Site "https://www.chess.com"]
[Date "2023.11.21"]
[Round "8"]
[White "Le, Quang Liem"]
[Black "Puranik, Abhimanyu"]
[Result "1-0"]
[Board "6"]
[TimeControl "180+1"]
[WhiteFideId "12401137"]
[BlackFideId "5061245"]
[WhiteElo "2665"]
[BlackElo "2493"]
[WhiteTeam "VIE"]
[BlackTeam "IND"]
[WhiteClock "0:00:13"]
[BlackClock "0:00:15"]

1. Nf3 {[%clk 0:03:00]}  Nf6 {[%clk 0:02:59]} 2. c4 {[%clk 0:03:00]}  c5 {[%clk 0:02:58]} 3. Nc3 {[%clk 0:02:59]}  e6 {[%clk 0:02:58]} 4. g3 {[%clk 0:02:55]}  b6 {[%clk 0:02:57]} 5. Bg2 {[%clk 0:02:55]}  Bb7 {[%clk 0:02:58]} 6. O-O {[%clk 0:02:55]}  Be7 {[%clk 0:02:56]} 7. d4 {[%clk 0:02:55]}  cxd4 {[%clk 0:02:56]} 8. Qxd4 {[%clk 0:02:56]}  O-O {[%clk 0:02:52]} 9. Bg5 {[%clk 0:02:50]}  h6 {[%clk 0:02:49]} 10. Bxf6 {[%clk 0:02:48]}  Bxf6 {[%clk 0:02:49]} 11. Qe3 {[%clk 0:02:38]}  Qc7 {[%clk 0:02:40]} 12. Rac1 {[%clk 0:02:30]}  a6 {[%clk 0:02:38]} 13. Rfd1 {[%clk 0:02:20]}  d6 {[%clk 0:02:05]} 14. Ne4 {[%clk 0:02:00]}  Bxe4 {[%clk 0:01:36]} 15. Qxe4 {[%clk 0:02:01]}  Nd7 {[%clk 0:01:37]} 16. b4 {[%clk 0:02:01]}  a5 {[%clk 0:01:36]} 17. Nd4 {[%clk 0:01:42]}  axb4 {[%clk 0:01:32]} 18. Nb5 {[%clk 0:01:37]}  Qc5 {[%clk 0:01:31]} 19. Rxd6 {[%clk 0:01:32]}  Ne5 {[%clk 0:01:32]} 20. Rc2 {[%clk 0:00:31]}  Rad8 {[%clk 0:01:28]} 21. Rxd8 {[%clk 0:00:29]}  Rxd8 {[%clk 0:01:28]} 22. e3 {[%clk 0:00:28]}  Rd1+ {[%clk 0:01:28]} 23. Bf1 {[%clk 0:00:28]}  g5 {[%clk 0:01:18]} 24. Kg2 {[%clk 0:00:28]}  g4 {[%clk 0:01:17]} 25. Be2 {[%clk 0:00:28]}  Ra1 {[%clk 0:01:11]} 26. Bxg4 {[%clk 0:00:28]}  Qc6 {[%clk 0:01:02]} 27. Qxc6 {[%clk 0:00:24]}  Nxc6 {[%clk 0:01:03]} 28. Bh5 {[%clk 0:00:24]}  Ne5 {[%clk 0:01:01]} 29. f4 {[%clk 0:00:19]}  Nd3 {[%clk 0:01:00]} 30. Rd2 {[%clk 0:00:20]}  Nb2 {[%clk 0:00:57]} 31. Rd7 {[%clk 0:00:20]}  Nxc4 {[%clk 0:00:54]} 32. Bxf7+ {[%clk 0:00:20]}  Kh8 {[%clk 0:00:48]} 33. Bxe6 {[%clk 0:00:21]}  Rxa2+ {[%clk 0:00:40]} 34. Kf3 {[%clk 0:00:16]}  Rd2 {[%clk 0:00:29]} 35. Rf7 {[%clk 0:00:13]}  Nd6 {[%clk 0:00:25]} 36. Nxd6 {[%clk 0:00:13]}  Rxd6 {[%clk 0:00:15]} 37. Rxf6 {[%clk 0:00:13]} 1-0

[Event "November 21 Early 2023"]
[Site "https://www.chess.com"]
[Date "2023.11.21"]
[Round "8"]
[White "Sadhwani, Raunak"]
[Black "Rohith Krishna S"]
[Result "1-0"]
[Board "7"]
[TimeControl "180+1"]
[WhiteFideId "35093487"]
[BlackFideId "46617051"]
[WhiteElo "2668"]
[BlackElo "2394"]
[WhiteTeam "IND"]
[BlackTeam "IND"]
[WhiteClock "0:01:41"]
[BlackClock "0:00:20"]

1. e4 {[%clk 0:03:00]}  e5 {[%clk 0:02:59]} 2. Nf3 {[%clk 0:03:00]}  Nc6 {[%clk 0:03:00]} 3. Bb5 {[%clk 0:03:01]}  a6 {[%clk 0:03:01]} 4. Ba4 {[%clk 0:03:01]}  Nf6 {[%clk 0:03:01]} 5. O-O {[%clk 0:03:02]}  Be7 {[%clk 0:03:02]} 6. Re1 {[%clk 0:03:02]}  b5 {[%clk 0:03:03]} 7. Bb3 {[%clk 0:03:02]}  O-O {[%clk 0:03:03]} 8. d3 {[%clk 0:03:03]}  d6 {[%clk 0:03:02]} 9. a4 {[%clk 0:03:03]}  Bg4 {[%clk 0:02:54]} 10. c3 {[%clk 0:03:03]}  Na5 {[%clk 0:02:55]} 11. Bc2 {[%clk 0:03:03]}  c5 {[%clk 0:02:56]} 12. h3 {[%clk 0:03:03]}  Be6 {[%clk 0:02:56]} 13. Nbd2 {[%clk 0:03:03]}  b4 {[%clk 0:02:50]} 14. d4 {[%clk 0:03:03]}  bxc3 {[%clk 0:02:45]} 15. bxc3 {[%clk 0:03:03]}  cxd4 {[%clk 0:02:45]} 16. cxd4 {[%clk 0:03:04]}  Rc8 {[%clk 0:02:42]} 17. d5 {[%clk 0:03:02]}  Bd7 {[%clk 0:02:42]} 18. Bd3 {[%clk 0:03:02]}  Qb6 {[%clk 0:02:39]} 19. Ba3 {[%clk 0:03:01]}  Rc3 {[%clk 0:02:36]} 20. Nxe5 {[%clk 0:02:47]}  dxe5 {[%clk 0:02:12]} 21. Bxe7 {[%clk 0:02:48]}  Rxd3 {[%clk 0:02:12]} 22. Bxf8 {[%clk 0:02:47]}  Kxf8 {[%clk 0:02:13]} 23. Qc2 {[%clk 0:02:47]}  Rd4 {[%clk 0:01:50]} 24. Reb1 {[%clk 0:02:26]}  Qd8 {[%clk 0:01:33]} 25. Qc3 {[%clk 0:02:09]}  g6 {[%clk 0:01:16]} 26. Rb4 {[%clk 0:02:03]}  Rxb4 {[%clk 0:01:04]} 27. Qxb4+ {[%clk 0:02:04]}  Kg7 {[%clk 0:01:05]} 28. Rc1 {[%clk 0:02:04]}  Bc8 {[%clk 0:00:49]} 29. Nf3 {[%clk 0:01:51]}  Nd7 {[%clk 0:00:42]} 30. Qc3 {[%clk 0:01:45]}  Bb7 {[%clk 0:00:35]} 31. Nxe5 {[%clk 0:01:45]}  Nxe5 {[%clk 0:00:36]} 32. Qxe5+ {[%clk 0:01:46]}  Kh6 {[%clk 0:00:36]} 33. Rc7 {[%clk 0:01:42]}  f6 {[%clk 0:00:27]} 34. Qc3 {[%clk 0:01:42]}  Qb8 {[%clk 0:00:20]} 35. Qxa5 {[%clk 0:01:41]} 1-0

[Event "November 21 Early 2023"]
[Site "https://www.chess.com"]
[Date "2023.11.21"]
[Round "8"]
[White "Maghsoodloo, Parham"]
[Black "Raja Rithvik R"]
[Result "1-0"]
[Board "8"]
[TimeControl "180+1"]
[WhiteFideId "12539929"]
[BlackFideId "35007394"]
[WhiteElo "2660"]
[BlackElo "2395"]
[WhiteTeam "IRI"]
[BlackTeam "IND"]
[WhiteClock "0:01:17"]
[BlackClock "0:00:12"]

1. d4 {[%clk 0:03:00]}  Nf6 {[%clk 0:02:59]} 2. c4 {[%clk 0:03:00]}  e6 {[%clk 0:03:00]} 3. Nf3 {[%clk 0:03:01]}  d5 {[%clk 0:03:00]} 4. Nc3 {[%clk 0:03:01]}  Bb4 {[%clk 0:03:00]} 5. Qa4+ {[%clk 0:02:55]}  Nc6 {[%clk 0:03:01]} 6. Bg5 {[%clk 0:02:55]}  h6 {[%clk 0:03:01]} 7. Bxf6 {[%clk 0:02:54]}  Qxf6 {[%clk 0:03:02]} 8. cxd5 {[%clk 0:02:55]}  exd5 {[%clk 0:03:02]} 9. e3 {[%clk 0:02:55]}  O-O {[%clk 0:02:50]} 10. Be2 {[%clk 0:02:47]}  Be6 {[%clk 0:02:42]} 11. O-O {[%clk 0:02:47]}  a6 {[%clk 0:02:42]} 12. Qc2 {[%clk 0:02:43]}  Bd6 {[%clk 0:02:40]} 13. Na4 {[%clk 0:02:43]}  Ne7 {[%clk 0:02:21]} 14. Nc5 {[%clk 0:02:43]}  Bf5 {[%clk 0:02:13]} 15. Qc3 {[%clk 0:02:41]}  Rab8 {[%clk 0:02:02]} 16. Ne5 {[%clk 0:02:32]}  Rfd8 {[%clk 0:01:52]} 17. f4 {[%clk 0:02:30]}  Be4 {[%clk 0:01:19]} 18. Nxe4 {[%clk 0:02:23]}  dxe4 {[%clk 0:01:20]} 19. Bc4 {[%clk 0:02:24]}  Bxe5 {[%clk 0:01:11]} 20. fxe5 {[%clk 0:02:24]}  Qg5 {[%clk 0:01:11]} 21. Rxf7 {[%clk 0:02:20]}  Kh8 {[%clk 0:01:11]} 22. Raf1 {[%clk 0:02:15]}  c6 {[%clk 0:01:10]} 23. R7f4 {[%clk 0:02:00]}  c5 {[%clk 0:00:46]} 24. Rxe4 {[%clk 0:01:49]}  Rbc8 {[%clk 0:00:46]} 25. Qd3 {[%clk 0:01:42]}  b5 {[%clk 0:00:34]} 26. Be6 {[%clk 0:01:41]}  Rc6 {[%clk 0:00:35]} 27. Bg4 {[%clk 0:01:20]}  Qg6 {[%clk 0:00:28]} 28. Bf3 {[%clk 0:01:19]}  Nf5 {[%clk 0:00:12]} 29. Rg4 {[%clk 0:01:17]} 1-0

[Event "November 21 Early 2023"]
[Site "https://www.chess.com"]
[Date "2023.11.21"]
[Round "8"]
[White "luckyswitchback"]
[Black "Le, Tuan Minh"]
[Result "0-1"]
[Board "9"]
[TimeControl "180+1"]
[BlackFideId "12401153"]
[WhiteElo "2836"]
[BlackElo "2561"]
[BlackTeam "VIE"]
[WhiteClock "0:00:00"]
[BlackClock "0:00:17"]

1. e4 {[%clk 0:03:00]}  e5 {[%clk 0:02:45]} 2. Nf3 {[%clk 0:03:00]}  Nc6 {[%clk 0:02:43]} 3. Bb5 {[%clk 0:03:01]}  a6 {[%clk 0:02:42]} 4. Ba4 {[%clk 0:03:01]}  Bc5 {[%clk 0:02:42]} 5. O-O {[%clk 0:02:55]}  Nge7 {[%clk 0:02:42]} 6. c3 {[%clk 0:02:55]}  Ng6 {[%clk 0:02:42]} 7. d4 {[%clk 0:02:56]}  Ba7 {[%clk 0:02:42]} 8. Bg5 {[%clk 0:02:56]}  f6 {[%clk 0:02:42]} 9. Be3 {[%clk 0:02:56]}  O-O {[%clk 0:02:43]} 10. Nbd2 {[%clk 0:02:53]}  Kh8 {[%clk 0:02:42]} 11. Re1 {[%clk 0:02:50]}  d6 {[%clk 0:02:42]} 12. h3 {[%clk 0:02:48]}  exd4 {[%clk 0:02:42]} 13. cxd4 {[%clk 0:02:47]}  Nce7 {[%clk 0:02:42]} 14. d5 {[%clk 0:02:35]}  Bxe3 {[%clk 0:02:41]} 15. Rxe3 {[%clk 0:02:36]}  f5 {[%clk 0:02:42]} 16. Bc2 {[%clk 0:02:21]}  Nf4 {[%clk 0:02:32]} 17. Nf1 {[%clk 0:02:13]}  fxe4 {[%clk 0:02:11]} 18. Bxe4 {[%clk 0:02:14]}  Bf5 {[%clk 0:02:05]} 19. Nd4 {[%clk 0:01:04]}  Bxe4 {[%clk 0:01:54]} 20. Rxe4 {[%clk 0:01:05]}  Nexd5 {[%clk 0:01:49]} 21. Ne3 {[%clk 0:00:59]}  Qg5 {[%clk 0:01:34]} 22. h4 {[%clk 0:00:51]}  Qg6 {[%clk 0:01:28]} 23. Qf3 {[%clk 0:00:36]}  Ne2+ {[%clk 0:01:13]} 24. Qxe2 {[%clk 0:00:36]}  Qxe4 {[%clk 0:01:13]} 25. Nxd5 {[%clk 0:00:35]}  Qxd5 {[%clk 0:01:14]} 26. Nf3 {[%clk 0:00:22]}  Rae8 {[%clk 0:01:14]} 27. Qc2 {[%clk 0:00:23]}  Re7 {[%clk 0:01:14]} 28. Ng5 {[%clk 0:00:22]}  Qf5 {[%clk 0:01:14]} 29. Qd2 {[%clk 0:00:20]}  h6 {[%clk 0:01:14]} 30. Nf3 {[%clk 0:00:21]}  Rfe8 {[%clk 0:01:12]} 31. Rc1 {[%clk 0:00:21]}  Qf6 {[%clk 0:01:07]} 32. h5 {[%clk 0:00:20]}  c5 {[%clk 0:01:02]} 33. b3 {[%clk 0:00:19]}  b5 {[%clk 0:00:56]} 34. Qd5 {[%clk 0:00:20]}  Re4 {[%clk 0:00:49]} 35. Rd1 {[%clk 0:00:19]}  Rg4 {[%clk 0:00:49]} 36. Qc6 {[%clk 0:00:18]}  Rf8 {[%clk 0:00:48]} 37. Kf1 {[%clk 0:00:18]}  Rd4 {[%clk 0:00:40]} 38. Re1 {[%clk 0:00:13]}  Rh4 {[%clk 0:00:39]} 39. Kg1 {[%clk 0:00:11]}  Rxh5 {[%clk 0:00:39]} 40. Qxa6 {[%clk 0:00:10]}  b4 {[%clk 0:00:32]} 41. Rd1 {[%clk 0:00:10]}  d5 {[%clk 0:00:27]} 42. Qa7 {[%clk 0:00:06]}  d4 {[%clk 0:00:27]} 43. Qb7 {[%clk 0:00:06]}  Rf5 {[%clk 0:00:26]} 44. Re1 {[%clk 0:00:05]}  d3 {[%clk 0:00:25]} 45. Qe4 {[%clk 0:00:04]}  Qc3 {[%clk 0:00:23]} 46. Qe3 {[%clk 0:00:03]}  d2 {[%clk 0:00:17]} 47. Qxd2 {[%clk 0:00:00]}  Rxf3 {[%clk 0:00:17]} 0-1

[Event "November 21 Early 2023"]
[Site "https://www.chess.com"]
[Date "2023.11.21"]
[Round "8"]
[White "Piesik, Piotr"]
[Black "Baskakov, Egor"]
[Result "1/2-1/2"]
[Board "16"]
[TimeControl "180+1"]
[WhiteFideId "1136194"]
[BlackFideId "24197866"]
[WhiteElo "2309"]
[BlackElo "2225"]
[WhiteTeam "CZE"]
[BlackTeam "RUS"]
[WhiteClock "0:00:08"]
[BlackClock "0:00:09"]

1. Nf3 {[%clk 0:03:00]}  Nf6 {[%clk 0:02:59]} 2. g3 {[%clk 0:02:59]}  e6 {[%clk 0:03:00]} 3. Bg2 {[%clk 0:02:59]}  d5 {[%clk 0:03:01]} 4. O-O {[%clk 0:02:59]}  Be7 {[%clk 0:03:02]} 5. d3 {[%clk 0:02:58]}  O-O {[%clk 0:03:02]} 6. Nbd2 {[%clk 0:02:58]}  d4 {[%clk 0:03:03]} 7. c3 {[%clk 0:02:53]}  c5 {[%clk 0:03:03]} 8. Nb3 {[%clk 0:02:45]}  Nc6 {[%clk 0:03:03]} 9. Bf4 {[%clk 0:02:44]}  Nd5 {[%clk 0:02:58]} 10. Bd2 {[%clk 0:02:43]}  e5 {[%clk 0:02:57]} 11. e4 {[%clk 0:02:38]}  dxe3 {[%clk 0:02:55]} 12. fxe3 {[%clk 0:02:38]}  Bg4 {[%clk 0:02:50]} 13. e4 {[%clk 0:02:38]}  Nb6 {[%clk 0:02:46]} 14. Qe2 {[%clk 0:02:34]}  a5 {[%clk 0:02:37]} 15. Be3 {[%clk 0:02:32]}  Nd7 {[%clk 0:02:32]} 16. a4 {[%clk 0:02:32]}  Qb6 {[%clk 0:02:26]} 17. Qc2 {[%clk 0:02:26]}  Be6 {[%clk 0:02:21]} 18. Nbd2 {[%clk 0:02:17]}  h6 {[%clk 0:02:21]} 19. Nc4 {[%clk 0:02:15]}  Qa6 {[%clk 0:02:15]} 20. Nfd2 {[%clk 0:02:10]}  b5 {[%clk 0:02:13]} 21. axb5 {[%clk 0:02:09]}  Qxb5 {[%clk 0:02:13]} 22. Na3 {[%clk 0:02:08]}  Qb7 {[%clk 0:02:11]} 23. Ndc4 {[%clk 0:02:06]}  a4 {[%clk 0:02:08]} 24. Rf2 {[%clk 0:02:02]}  Rfb8 {[%clk 0:01:55]} 25. Raf1 {[%clk 0:01:57]}  Na5 {[%clk 0:01:56]} 26. Nxa5 {[%clk 0:01:52]}  Rxa5 {[%clk 0:01:57]} 27. Qd1 {[%clk 0:01:42]}  Ra6 {[%clk 0:01:45]} 28. Nc4 {[%clk 0:01:34]}  Qc7 {[%clk 0:01:31]} 29. Bf3 {[%clk 0:01:27]}  Nb6 {[%clk 0:01:29]} 30. Na3 {[%clk 0:01:23]}  Qd7 {[%clk 0:01:25]} 31. Bh5 {[%clk 0:01:19]}  Rf8 {[%clk 0:01:19]} 32. h4 {[%clk 0:00:58]}  Raa8 {[%clk 0:01:14]} 33. Kh2 {[%clk 0:00:53]}  Rad8 {[%clk 0:01:08]} 34. Rd2 {[%clk 0:00:47]}  Kh7 {[%clk 0:01:04]} 35. Bf3 {[%clk 0:00:36]}  g6 {[%clk 0:00:54]} 36. h5 {[%clk 0:00:34]}  gxh5 {[%clk 0:00:36]} 37. Bxh5 {[%clk 0:00:34]}  f5 {[%clk 0:00:37]} 38. exf5 {[%clk 0:00:30]}  Rxf5 {[%clk 0:00:37]} 39. Rxf5 {[%clk 0:00:30]}  Bxf5 {[%clk 0:00:37]} 40. Qf3 {[%clk 0:00:28]}  Rf8 {[%clk 0:00:29]} 41. Qg2 {[%clk 0:00:25]}  Nd5 {[%clk 0:00:28]} 42. Nc4 {[%clk 0:00:23]}  Nxe3 {[%clk 0:00:14]} 43. Nxe3 {[%clk 0:00:23]}  Bg5 {[%clk 0:00:14]} 44. Re2 {[%clk 0:00:10]}  Bxd3 {[%clk 0:00:12]} 45. Re1 {[%clk 0:00:10]}  e4 {[%clk 0:00:12]} 46. Bg4 {[%clk 0:00:09]}  Qg7 {[%clk 0:00:10]} 47. Bf5+ {[%clk 0:00:10]}  Kh8 {[%clk 0:00:10]} 48. Bxe4 {[%clk 0:00:10]}  Bxe4 {[%clk 0:00:08]} 49. Qxe4 {[%clk 0:00:11]}  Qf7 {[%clk 0:00:08]} 50. Rf1 {[%clk 0:00:10]}  Qe8 {[%clk 0:00:07]} 51. Rxf8+ {[%clk 0:00:09]}  Qxf8 {[%clk 0:00:08]} 52. Qe5+ {[%clk 0:00:09]}  Qg7 {[%clk 0:00:08]} 53. Qxc5 {[%clk 0:00:09]}  Qf7 {[%clk 0:00:08]} 54. Qd4+ {[%clk 0:00:08]}  Kg8 {[%clk 0:00:09]} 55. Ng2 {[%clk 0:00:08]}  Qe8 {[%clk 0:00:08]} 56. Qc4+ {[%clk 0:00:08]}  Kh8 {[%clk 0:00:08]} 57. Qd4+ {[%clk 0:00:08]}  Kg8 {[%clk 0:00:09]} 58. Qd5+ {[%clk 0:00:09]}  Kh8 {[%clk 0:00:09]} 59. Qd4+ {[%clk 0:00:08]}  Kg8 {[%clk 0:00:09]} 1/2-1/2

[Event "November 21 Early 2023"]
[Site "https://www.chess.com"]
[Date "2023.11.21"]
[Round "8"]
[White "Vignesh N R"]
[Black "Martinez Alcantara, Jose Eduardo"]
[Result "0-1"]
[Board "18"]
[TimeControl "180+1"]
[WhiteFideId "25012215"]
[BlackFideId "3805662"]
[WhiteElo "2425"]
[BlackElo "2703"]
[WhiteTeam "IND"]
[BlackTeam "PER"]
[WhiteClock "0:00:13"]
[BlackClock "0:00:09"]

1. e4 {[%clk 0:03:00]}  c5 {[%clk 0:02:59]} 2. Nf3 {[%clk 0:03:00]}  d6 {[%clk 0:02:59]} 3. d4 {[%clk 0:03:01]}  cxd4 {[%clk 0:03:00]} 4. Nxd4 {[%clk 0:03:02]}  a6 {[%clk 0:03:01]} 5. Nc3 {[%clk 0:03:01]}  e6 {[%clk 0:03:02]} 6. a4 {[%clk 0:02:49]}  b6 {[%clk 0:03:00]} 7. Be2 {[%clk 0:02:49]}  Bb7 {[%clk 0:03:00]} 8. O-O {[%clk 0:02:50]}  Nf6 {[%clk 0:03:01]} 9. Qd3 {[%clk 0:02:41]}  Nbd7 {[%clk 0:03:00]} 10. Re1 {[%clk 0:02:29]}  Be7 {[%clk 0:03:00]} 11. Qg3 {[%clk 0:02:27]}  O-O {[%clk 0:02:57]} 12. Bh6 {[%clk 0:02:24]}  Ne8 {[%clk 0:02:57]} 13. Bc4 {[%clk 0:02:21]}  Bh4 {[%clk 0:02:48]} 14. Qh3 {[%clk 0:02:18]}  gxh6 {[%clk 0:02:39]} 15. Rad1 {[%clk 0:01:43]}  Kh8 {[%clk 0:02:30]} 16. g3 {[%clk 0:01:41]}  Bf6 {[%clk 0:02:24]} 17. Bxe6 {[%clk 0:01:39]}  Bxd4 {[%clk 0:02:17]} 18. Bxd7 {[%clk 0:01:39]}  Bxc3 {[%clk 0:02:16]} 19. bxc3 {[%clk 0:01:38]}  Qf6 {[%clk 0:02:07]} 20. Re3 {[%clk 0:01:28]}  Rd8 {[%clk 0:02:01]} 21. Rb1 {[%clk 0:01:20]}  d5 {[%clk 0:01:25]} 22. e5 {[%clk 0:01:12]}  Qg6 {[%clk 0:01:26]} 23. Bf5 {[%clk 0:01:11]}  Qc6 {[%clk 0:01:26]} 24. e6 {[%clk 0:01:03]}  d4 {[%clk 0:01:23]} 25. Be4 {[%clk 0:00:49]}  Qxe6 {[%clk 0:01:21]} 26. Qxe6 {[%clk 0:00:50]}  fxe6 {[%clk 0:01:22]} 27. cxd4 {[%clk 0:00:50]}  Bxe4 {[%clk 0:01:19]} 28. Rxe4 {[%clk 0:00:51]}  Rd6 {[%clk 0:01:17]} 29. Rbe1 {[%clk 0:00:52]}  Nc7 {[%clk 0:01:17]} 30. c4 {[%clk 0:00:51]}  Rc6 {[%clk 0:01:13]} 31. a5 {[%clk 0:00:38]}  b5 {[%clk 0:01:08]} 32. c5 {[%clk 0:00:33]}  b4 {[%clk 0:01:07]} 33. Rb1 {[%clk 0:00:33]}  Rb8 {[%clk 0:01:07]} 34. Rb3 {[%clk 0:00:33]}  Rb5 {[%clk 0:01:04]} 35. f4 {[%clk 0:00:32]}  Kg7 {[%clk 0:01:04]} 36. Re5 {[%clk 0:00:31]}  Rxa5 {[%clk 0:00:48]} 37. Rxb4 {[%clk 0:00:29]}  Rb5 {[%clk 0:00:49]} 38. Ra4 {[%clk 0:00:28]}  a5 {[%clk 0:00:42]} 39. Kf2 {[%clk 0:00:26]}  Rb4 {[%clk 0:00:40]} 40. Rxb4 {[%clk 0:00:25]}  axb4 {[%clk 0:00:40]} 41. Ke3 {[%clk 0:00:22]}  Ra6 {[%clk 0:00:38]} 42. Kd3 {[%clk 0:00:21]}  Ra2 {[%clk 0:00:22]} 43. f5 {[%clk 0:00:19]}  Kf6 {[%clk 0:00:23]} 44. fxe6 {[%clk 0:00:19]}  Nxe6 {[%clk 0:00:24]} 45. Rh5 {[%clk 0:00:20]}  Kg6 {[%clk 0:00:18]} 46. Re5 {[%clk 0:00:19]}  Kf7 {[%clk 0:00:19]} 47. c6 {[%clk 0:00:19]}  Ra3+ {[%clk 0:00:14]} 48. Kd2 {[%clk 0:00:17]}  Nxd4 {[%clk 0:00:09]} 49. Rc5 {[%clk 0:00:13]}  Nb3+ {[%clk 0:00:09]} 0-1

[Event "November 21 Early 2023"]
[Site "https://www.chess.com"]
[Date "2023.11.21"]
[Round "8"]
[White "Chigaev, Maksim"]
[Black "Borsuk, Konstantin"]
[Result "1-0"]
[Board "21"]
[TimeControl "180+1"]
[WhiteFideId "4108116"]
[BlackFideId "14113406"]
[WhiteElo "2561"]
[BlackElo "2410"]
[WhiteTeam "ESP"]
[BlackTeam "UKR"]
[WhiteClock "0:00:19"]
[BlackClock "0:00:01"]

1. d4 {[%clk 0:03:00]}  Nf6 {[%clk 0:02:53]} 2. c4 {[%clk 0:03:00]}  e6 {[%clk 0:02:53]} 3. g3 {[%clk 0:03:01]}  Bb4+ {[%clk 0:02:52]} 4. Nd2 {[%clk 0:03:00]}  O-O {[%clk 0:02:49]} 5. Bg2 {[%clk 0:03:00]}  Re8 {[%clk 0:02:49]} 6. Nf3 {[%clk 0:03:00]}  b6 {[%clk 0:02:47]} 7. O-O {[%clk 0:02:57]}  Bb7 {[%clk 0:02:47]} 8. Qc2 {[%clk 0:02:56]}  d5 {[%clk 0:02:30]} 9. Ne5 {[%clk 0:02:52]}  Nbd7 {[%clk 0:02:25]} 10. Ndf3 {[%clk 0:02:39]}  Ne4 {[%clk 0:02:12]} 11. cxd5 {[%clk 0:02:30]}  exd5 {[%clk 0:02:11]} 12. Nc6 {[%clk 0:02:25]}  Bxc6 {[%clk 0:02:05]} 13. Qxc6 {[%clk 0:02:26]}  Ndf6 {[%clk 0:01:55]} 14. Bf4 {[%clk 0:02:16]}  Bd6 {[%clk 0:01:52]} 15. Be5 {[%clk 0:02:13]}  Re6 {[%clk 0:01:48]} 16. Qc2 {[%clk 0:02:09]}  c5 {[%clk 0:01:46]} 17. Bxf6 {[%clk 0:02:00]}  Qxf6 {[%clk 0:01:31]} 18. e3 {[%clk 0:01:51]}  Rd8 {[%clk 0:01:23]} 19. Rad1 {[%clk 0:01:27]}  g5 {[%clk 0:01:13]} 20. dxc5 {[%clk 0:01:22]}  Bxc5 {[%clk 0:01:13]} 21. Nd4 {[%clk 0:01:17]}  Ree8 {[%clk 0:01:09]} 22. a3 {[%clk 0:01:14]}  a5 {[%clk 0:01:09]} 23. Qe2 {[%clk 0:01:06]}  Qg6 {[%clk 0:00:52]} 24. Nb5 {[%clk 0:00:59]}  h5 {[%clk 0:00:42]} 25. Nc7 {[%clk 0:00:42]}  Re5 {[%clk 0:00:29]} 26. Qc2 {[%clk 0:00:39]}  Rd6 {[%clk 0:00:20]} 27. Nxd5 {[%clk 0:00:25]}  g4 {[%clk 0:00:04]} 28. b4 {[%clk 0:00:23]}  axb4 {[%clk 0:00:03]} 29. axb4 {[%clk 0:00:19]}  Nf6 {[%clk 0:00:01]} 1-0

[Event "November 21 Early 2023"]
[Site "https://www.chess.com"]
[Date "2023.11.21"]
[Round "8"]
[White "Samunenkov, Ihor"]
[Black "Ashraf, Artin"]
[Result "0-1"]
[Board "22"]
[TimeControl "180+1"]
[WhiteFideId "14187086"]
[BlackFideId "22514805"]
[WhiteElo "2473"]
[BlackElo "2235"]
[WhiteTeam "UKR"]
[BlackTeam "IRI"]
[WhiteClock "0:00:00"]
[BlackClock "0:00:04"]

1. d4 {[%clk 0:03:00]}  Nf6 {[%clk 0:02:56]} 2. Nc3 {[%clk 0:02:59]}  d5 {[%clk 0:02:50]} 3. Bf4 {[%clk 0:02:59]}  e6 {[%clk 0:02:45]} 4. Nb5 {[%clk 0:02:54]}  Bb4+ {[%clk 0:02:45]} 5. c3 {[%clk 0:02:54]}  Ba5 {[%clk 0:02:42]} 6. a4 {[%clk 0:02:52]}  a6 {[%clk 0:02:26]} 7. b4 {[%clk 0:02:51]}  axb5 {[%clk 0:01:59]} 8. axb5 {[%clk 0:02:51]}  Bd7 {[%clk 0:01:41]} 9. Qd3 {[%clk 0:01:55]}  c6 {[%clk 0:01:27]} 10. Nf3 {[%clk 0:01:18]}  Bc7 {[%clk 0:01:12]} 11. Rxa8 {[%clk 0:01:17]}  Bxf4 {[%clk 0:01:12]} 12. e3 {[%clk 0:01:17]}  Bd6 {[%clk 0:01:04]} 13. Ne5 {[%clk 0:01:14]}  O-O {[%clk 0:00:57]} 14. Nxd7 {[%clk 0:01:10]}  Qxd7 {[%clk 0:00:53]} 15. bxc6 {[%clk 0:00:57]}  Qxc6 {[%clk 0:00:45]} 16. f3 {[%clk 0:00:40]}  Rc8 {[%clk 0:00:32]} 17. Ra3 {[%clk 0:00:40]}  Na6 {[%clk 0:00:17]} 18. Rb3 {[%clk 0:00:24]}  Qb6 {[%clk 0:00:05]} 19. Be2 {[%clk 0:00:20]}  Nc7 {[%clk 0:00:05]} 20. O-O {[%clk 0:00:18]}  e5 {[%clk 0:00:05]} 21. Rd1 {[%clk 0:00:13]}  Ne6 {[%clk 0:00:05]} 22. Qb5 {[%clk 0:00:11]}  Qc7 {[%clk 0:00:05]} 23. g3 {[%clk 0:00:04]}  exd4 {[%clk 0:00:04]} 24. cxd4 {[%clk 0:00:03]}  Bxg3 {[%clk 0:00:04]} 25. hxg3 {[%clk 0:00:02]}  Qxg3+ {[%clk 0:00:05]} 26. Kf1 {[%clk 0:00:03]}  Ng5 {[%clk 0:00:05]} 27. Qxb7 {[%clk 0:00:02]}  Rf8 {[%clk 0:00:04]} 28. Qb5 {[%clk 0:00:00]}  Nh3 {[%clk 0:00:04]} 0-1